[Event "Titled Tuesday Blitz May 16 Early 2023"]
[White "Principe, Gerson"]
[Black "Firouzja, Alireza"]
[WhiteFideId "3804550"]
[BlackFideId "12573981"]
[WhiteElo "2229"]
[BlackElo "2904"]
[Result "0-1"]
[Round "01"]
[TimeControl "180+2"]
[Date "2023.05.16"]
[WhiteClock "0:00:00"]
[BlackClock "0:00:52"]

1. d4 {[%clk 0:02:57]}  Nf6 {[%clk 0:02:59]} 2. Nf3 {[%clk 0:02:57]}  g6 {[%clk 0:02:59]} 3. e3 {[%clk 0:02:53]}  Bg7 {[%clk 0:02:59]} 4. Be2 {[%clk 0:02:54]}  O-O {[%clk 0:02:59]} 5. O-O {[%clk 0:02:54]}  d6 {[%clk 0:03:00]} 6. c4 {[%clk 0:02:54]}  Nbd7 {[%clk 0:03:00]} 7. b4 {[%clk 0:02:52]}  e5 {[%clk 0:03:00]} 8. Bb2 {[%clk 0:02:53]}  e4 {[%clk 0:03:00]} 9. Nfd2 {[%clk 0:02:53]}  Re8 {[%clk 0:03:01]} 10. Nc3 {[%clk 0:02:54]}  Nf8 {[%clk 0:03:00]} 11. b5 {[%clk 0:02:48]}  h5 {[%clk 0:02:57]} 12. a4 {[%clk 0:02:41]}  Bf5 {[%clk 0:02:55]} 13. a5 {[%clk 0:02:38]}  a6 {[%clk 0:02:54]} 14. bxa6 {[%clk 0:02:37]}  bxa6 {[%clk 0:02:54]} 15. Nd5 {[%clk 0:02:29]}  Nxd5 {[%clk 0:02:51]} 16. cxd5 {[%clk 0:02:30]}  Nh7 {[%clk 0:02:50]} 17. Rc1 {[%clk 0:02:28]}  Ra7 {[%clk 0:02:49]} 18. Ba3 {[%clk 0:01:58]}  Nf6 {[%clk 0:02:43]} 19. Qb3 {[%clk 0:01:58]}  Ng4 {[%clk 0:02:41]} 20. h3 {[%clk 0:01:51]}  Nh6 {[%clk 0:02:28]} 21. Kh1 {[%clk 0:01:38]}  Qh4 {[%clk 0:02:27]} 22. Qd1 {[%clk 0:01:15]}  Bxh3 {[%clk 0:02:23]} 23. gxh3 {[%clk 0:01:15]}  Qxh3+ {[%clk 0:02:23]} 24. Kg1 {[%clk 0:01:15]}  Ng4 {[%clk 0:02:24]} 25. Bxg4 {[%clk 0:01:15]}  hxg4 {[%clk 0:02:25]} 26. Qe2 {[%clk 0:00:55]}  f5 {[%clk 0:02:20]} 27. Rfe1 {[%clk 0:00:50]}  f4 {[%clk 0:01:50]} 28. Qf1 {[%clk 0:00:45]}  Qh4 {[%clk 0:01:41]} 29. exf4 {[%clk 0:00:30]}  Bxd4 {[%clk 0:01:21]} 30. Rxe4 {[%clk 0:00:11]}  Rxe4 {[%clk 0:01:17]} 31. Nxe4 {[%clk 0:00:11]}  g3 {[%clk 0:01:18]} 32. Qg2 {[%clk 0:00:06]}  Qxf4 {[%clk 0:01:19]} 33. Re1 {[%clk 0:00:05]}  Rb7 {[%clk 0:01:14]} 34. Bc1 {[%clk 0:00:04]}  gxf2+ {[%clk 0:01:06]} 35. Nxf2 {[%clk 0:00:04]}  Qf5 {[%clk 0:01:06]} 36. Be3 {[%clk 0:00:00]}  Rb1 {[%clk 0:00:52]} 0-1


[Site "https://www.chess.com"]

[Event "Titled Tuesday Blitz May 16 Early 2023"]
[White "Belov, Alexei"]
[Black "Grischuk, Alexander"]
[WhiteFideId "4128206"]
[BlackFideId "4126025"]
[WhiteElo "2527"]
[BlackElo "2721"]
[Result "0-1"]
[Round "01"]
[TimeControl "180+2"]
[Date "2023.05.16"]
[WhiteClock "0:00:08"]
[BlackClock "0:00:46"]

1. e4 {[%clk 0:03:00]}  e6 {[%clk 0:02:59]} 2. d4 {[%clk 0:03:00]}  d5 {[%clk 0:03:00]} 3. Nd2 {[%clk 0:03:00]}  c5 {[%clk 0:02:59]} 4. Ngf3 {[%clk 0:02:58]}  cxd4 {[%clk 0:02:59]} 5. exd5 {[%clk 0:02:58]}  Qxd5 {[%clk 0:02:59]} 6. Bc4 {[%clk 0:02:58]}  Qd6 {[%clk 0:03:00]} 7. O-O {[%clk 0:02:58]}  Nf6 {[%clk 0:03:00]} 8. Nb3 {[%clk 0:02:58]}  Nc6 {[%clk 0:03:01]} 9. Nfxd4 {[%clk 0:02:59]}  Nxd4 {[%clk 0:03:01]} 10. Qxd4 {[%clk 0:02:59]}  Qxd4 {[%clk 0:02:42]} 11. Nxd4 {[%clk 0:03:00]}  Bd7 {[%clk 0:02:42]} 12. Be2 {[%clk 0:02:53]}  Bc5 {[%clk 0:02:41]} 13. Rd1 {[%clk 0:02:50]}  O-O-O {[%clk 0:02:21]} 14. Bf4 {[%clk 0:02:34]}  Ba4 {[%clk 0:02:10]} 15. Nb3 {[%clk 0:02:33]}  Bb6 {[%clk 0:02:09]} 16. Bf3 {[%clk 0:02:26]}  Bc6 {[%clk 0:01:43]} 17. Bxc6 {[%clk 0:02:14]}  bxc6 {[%clk 0:01:44]} 18. Kf1 {[%clk 0:01:53]}  Nd5 {[%clk 0:01:43]} 19. Bd2 {[%clk 0:01:34]}  e5 {[%clk 0:01:43]} 20. c4 {[%clk 0:01:33]}  Ne7 {[%clk 0:01:34]} 21. Bc3 {[%clk 0:01:13]}  f6 {[%clk 0:01:34]} 22. Ke2 {[%clk 0:01:12]}  Nf5 {[%clk 0:01:34]} 23. g4 {[%clk 0:00:59]}  Ne7 {[%clk 0:01:29]} 24. Bb4 {[%clk 0:00:47]}  Ng6 {[%clk 0:01:29]} 25. Nc5 {[%clk 0:00:41]}  Nf4+ {[%clk 0:01:28]} 26. Kf3 {[%clk 0:00:41]}  h5 {[%clk 0:01:21]} 27. gxh5 {[%clk 0:00:32]}  Rxh5 {[%clk 0:01:19]} 28. Rxd8+ {[%clk 0:00:29]}  Bxd8 {[%clk 0:01:20]} 29. Bd2 {[%clk 0:00:20]}  Rh3+ {[%clk 0:01:04]} 30. Kg4 {[%clk 0:00:15]}  Rxh2 {[%clk 0:01:04]} 31. Bxf4 {[%clk 0:00:14]}  exf4 {[%clk 0:01:05]} 32. Kf3 {[%clk 0:00:14]}  Bb6 {[%clk 0:01:04]} 33. Nd3 {[%clk 0:00:12]}  Rh3+ {[%clk 0:00:47]} 34. Ke4 {[%clk 0:00:08]}  f5+ {[%clk 0:00:46]} 0-1


[Site "https://www.chess.com"]

[Event "Titled Tuesday Blitz May 16 Early 2023"]
[White "Reprintsev, Alexander"]
[Black "Bortnyk, Olexandr"]
[WhiteFideId "14100541"]
[BlackFideId "14120828"]
[WhiteElo "2218"]
[BlackElo "2734"]
[Result "0-1"]
[Round "01"]
[TimeControl "180+2"]
[Date "2023.05.16"]
[WhiteClock "0:00:07"]
[BlackClock "0:00:18"]

1. e4 {[%clk 0:02:59]}  d6 {[%clk 0:02:53]} 2. d4 {[%clk 0:02:58]}  Nf6 {[%clk 0:02:54]} 3. Nc3 {[%clk 0:02:57]}  Nbd7 {[%clk 0:02:54]} 4. g4 {[%clk 0:02:51]}  h6 {[%clk 0:02:50]} 5. Bg2 {[%clk 0:02:48]}  e5 {[%clk 0:02:36]} 6. Be3 {[%clk 0:02:41]}  b6 {[%clk 0:02:10]} 7. h3 {[%clk 0:02:40]}  Bb7 {[%clk 0:01:55]} 8. Nge2 {[%clk 0:02:37]}  g6 {[%clk 0:01:55]} 9. Qd2 {[%clk 0:02:34]}  Bg7 {[%clk 0:01:55]} 10. Kd1 {[%clk 0:02:34]}  exd4 {[%clk 0:01:45]} 11. Nxd4 {[%clk 0:02:30]}  Nc5 {[%clk 0:01:40]} 12. f3 {[%clk 0:02:26]}  Qe7 {[%clk 0:01:32]} 13. a4 {[%clk 0:02:25]}  a6 {[%clk 0:01:26]} 14. b4 {[%clk 0:02:21]}  Ncd7 {[%clk 0:01:21]} 15. Ra3 {[%clk 0:02:14]}  c5 {[%clk 0:01:14]} 16. bxc5 {[%clk 0:02:09]}  dxc5 {[%clk 0:01:14]} 17. Nde2 {[%clk 0:02:05]}  Ne5 {[%clk 0:01:14]} 18. Qc1 {[%clk 0:02:00]}  Nc4 {[%clk 0:01:04]} 19. Ra2 {[%clk 0:01:59]}  O-O-O+ {[%clk 0:00:53]} 20. Ke1 {[%clk 0:01:59]}  Nxe3 {[%clk 0:00:49]} 21. Qxe3 {[%clk 0:01:59]}  Nd5 {[%clk 0:00:50]} 22. Nxd5 {[%clk 0:01:55]}  Bxd5 {[%clk 0:00:50]} 23. Ra3 {[%clk 0:01:53]}  Bc4 {[%clk 0:00:49]} 24. f4 {[%clk 0:01:39]}  Bb2 {[%clk 0:00:42]} 25. Rc3 {[%clk 0:01:25]}  Qh4+ {[%clk 0:00:25]} 26. Ng3 {[%clk 0:01:14]}  Bxc3+ {[%clk 0:00:25]} 27. Qxc3 {[%clk 0:01:14]}  Rd4 {[%clk 0:00:26]} 28. Kf2 {[%clk 0:00:56]}  Rhd8 {[%clk 0:00:26]} 29. Re1 {[%clk 0:00:55]}  Qf6 {[%clk 0:00:22]} 30. Qe3 {[%clk 0:00:53]}  Rd2+ {[%clk 0:00:23]} 31. Kg1 {[%clk 0:00:53]}  Qd4 {[%clk 0:00:22]} 32. c3 {[%clk 0:00:49]}  Qxe3+ {[%clk 0:00:22]} 33. Rxe3 {[%clk 0:00:49]}  R8d3 {[%clk 0:00:23]} 34. Rxd3 {[%clk 0:00:41]}  Rxd3 {[%clk 0:00:24]} 35. Kf2 {[%clk 0:00:28]}  Rxc3 {[%clk 0:00:24]} 36. e5 {[%clk 0:00:29]}  Rc2+ {[%clk 0:00:23]} 37. Kg1 {[%clk 0:00:27]}  b5 {[%clk 0:00:22]} 38. axb5 {[%clk 0:00:26]}  axb5 {[%clk 0:00:23]} 39. f5 {[%clk 0:00:27]}  b4 {[%clk 0:00:22]} 40. Be4 {[%clk 0:00:25]}  Rc3 {[%clk 0:00:23]} 41. Kf2 {[%clk 0:00:25]}  g5 {[%clk 0:00:20]} 42. f6 {[%clk 0:00:22]}  b3 {[%clk 0:00:20]} 43. Nf5 {[%clk 0:00:22]}  b2 {[%clk 0:00:20]} 44. Nd6+ {[%clk 0:00:19]}  Kd7 {[%clk 0:00:18]} 45. Bf5+ {[%clk 0:00:19]}  Be6 {[%clk 0:00:15]} 46. Nxf7 {[%clk 0:00:15]}  Bxf5 {[%clk 0:00:16]} 47. gxf5 {[%clk 0:00:15]}  b1=Q {[%clk 0:00:16]} 48. e6+ {[%clk 0:00:16]}  Kc7 {[%clk 0:00:17]} 49. e7 {[%clk 0:00:07]}  Qb2+ {[%clk 0:00:18]} 0-1


[Site "https://www.chess.com"]

[Event "Titled Tuesday Blitz May 16 Early 2023"]
[White "Baghdasaryan, Vahe"]
[Black "Bluebaum, Matthias"]
[WhiteFideId "13303139"]
[BlackFideId "24651516"]
[WhiteElo "2216"]
[BlackElo "2639"]
[Result "1/2-1/2"]
[Round "01"]
[TimeControl "180+2"]
[Date "2023.05.16"]
[WhiteClock "0:00:29"]
[BlackClock "0:01:21"]

1. e4 {[%clk 0:02:55]}  e6 {[%clk 0:02:59]} 2. d4 {[%clk 0:02:54]}  d5 {[%clk 0:02:57]} 3. Nc3 {[%clk 0:02:51]}  Nf6 {[%clk 0:02:57]} 4. Bg5 {[%clk 0:02:49]}  dxe4 {[%clk 0:02:58]} 5. Nxe4 {[%clk 0:02:48]}  Be7 {[%clk 0:02:58]} 6. Bxf6 {[%clk 0:02:46]}  gxf6 {[%clk 0:02:58]} 7. Nf3 {[%clk 0:02:45]}  f5 {[%clk 0:02:59]} 8. Nc3 {[%clk 0:02:26]}  a6 {[%clk 0:02:57]} 9. Qd2 {[%clk 0:01:59]}  b5 {[%clk 0:02:57]} 10. O-O-O {[%clk 0:01:58]}  Qd6 {[%clk 0:02:55]} 11. g3 {[%clk 0:01:41]}  Bb7 {[%clk 0:02:51]} 12. Bg2 {[%clk 0:01:41]}  Nd7 {[%clk 0:02:51]} 13. Kb1 {[%clk 0:01:38]}  O-O-O {[%clk 0:02:51]} 14. Rhe1 {[%clk 0:01:38]}  Nb6 {[%clk 0:02:49]} 15. b3 {[%clk 0:01:28]}  Kb8 {[%clk 0:02:48]} 16. Bh1 {[%clk 0:01:19]}  Bf6 {[%clk 0:02:41]} 17. Ng5 {[%clk 0:01:06]}  Qd7 {[%clk 0:02:29]} 18. Bxb7 {[%clk 0:01:00]}  Kxb7 {[%clk 0:02:30]} 19. Qf4 {[%clk 0:00:50]}  h6 {[%clk 0:02:24]} 20. Nge4 {[%clk 0:00:46]}  fxe4 {[%clk 0:01:53]} 21. Qxf6 {[%clk 0:00:40]}  Nd5 {[%clk 0:01:53]} 22. Nxd5 {[%clk 0:00:37]}  exd5 {[%clk 0:01:53]} 23. f3 {[%clk 0:00:38]}  Rhe8 {[%clk 0:01:40]} 24. fxe4 {[%clk 0:00:37]}  dxe4 {[%clk 0:01:40]} 25. Qxh6 {[%clk 0:00:33]}  f5 {[%clk 0:01:41]} 26. d5 {[%clk 0:00:31]}  Rh8 {[%clk 0:01:41]} 27. Qd2 {[%clk 0:00:31]}  Qd6 {[%clk 0:01:39]} 28. Rf1 {[%clk 0:00:30]}  Qe5 {[%clk 0:01:39]} 29. Qf4 {[%clk 0:00:29]}  Rxd5 {[%clk 0:01:31]} 30. Rxd5 {[%clk 0:00:28]}  Qxd5 {[%clk 0:01:31]} 31. Qxf5 {[%clk 0:00:29]}  Qxf5 {[%clk 0:01:32]} 32. Rxf5 {[%clk 0:00:29]}  Rxh2 {[%clk 0:01:33]} 33. Re5 {[%clk 0:00:29]}  Re2 {[%clk 0:01:32]} 34. Kc1 {[%clk 0:00:29]}  e3 {[%clk 0:01:28]} 35. Kd1 {[%clk 0:00:28]}  Rd2+ {[%clk 0:01:29]} 36. Kc1 {[%clk 0:00:28]}  Re2 {[%clk 0:01:27]} 37. Kd1 {[%clk 0:00:29]}  Rd2+ {[%clk 0:01:21]} 38. Kc1 {[%clk 0:00:29]}  Re2 {[%clk 0:01:21]} 1/2-1/2


[Site "https://www.chess.com"]

[Event "Titled Tuesday Blitz May 16 Early 2023"]
[White "Sarana, Alexey"]
[Black "Krsnik Cohar, Ivan Vihor"]
[WhiteFideId "24133795"]
[BlackFideId "14520044"]
[WhiteElo "2714"]
[BlackElo "2414"]
[Result "1-0"]
[Round "01"]
[TimeControl "180+2"]
[Date "2023.05.16"]
[WhiteClock "0:00:45"]
[BlackClock "0:00:00"]

1. c4 {[%clk 0:02:59]}  Nf6 {[%clk 0:02:32]} 2. d4 {[%clk 0:02:54]}  e6 {[%clk 0:02:32]} 3. Nc3 {[%clk 0:02:54]}  Be7 {[%clk 0:02:30]} 4. e4 {[%clk 0:02:54]}  d6 {[%clk 0:02:25]} 5. Bd3 {[%clk 0:02:49]}  Nbd7 {[%clk 0:02:13]} 6. Nge2 {[%clk 0:02:49]}  O-O {[%clk 0:02:09]} 7. f3 {[%clk 0:02:47]}  e5 {[%clk 0:01:55]} 8. Be3 {[%clk 0:02:47]}  exd4 {[%clk 0:01:48]} 9. Nxd4 {[%clk 0:02:48]}  Re8 {[%clk 0:01:48]} 10. O-O {[%clk 0:02:47]}  a5 {[%clk 0:01:47]} 11. b3 {[%clk 0:02:45]}  Nc5 {[%clk 0:01:47]} 12. Be2 {[%clk 0:02:40]}  g6 {[%clk 0:01:38]} 13. Qd2 {[%clk 0:02:40]}  Nh5 {[%clk 0:01:36]} 14. Rfd1 {[%clk 0:02:36]}  c6 {[%clk 0:01:36]} 15. Rab1 {[%clk 0:02:31]}  Qc7 {[%clk 0:01:34]} 16. a3 {[%clk 0:02:28]}  b6 {[%clk 0:01:05]} 17. b4 {[%clk 0:02:26]}  axb4 {[%clk 0:01:05]} 18. axb4 {[%clk 0:02:27]}  Ne6 {[%clk 0:01:06]} 19. b5 {[%clk 0:02:27]}  Nxd4 {[%clk 0:00:58]} 20. Bxd4 {[%clk 0:02:26]}  c5 {[%clk 0:00:57]} 21. Nd5 {[%clk 0:02:26]}  Qd8 {[%clk 0:00:55]} 22. Bc3 {[%clk 0:02:07]}  Be6 {[%clk 0:00:48]} 23. Nxe7+ {[%clk 0:02:05]}  Qxe7 {[%clk 0:00:39]} 24. Qxd6 {[%clk 0:02:05]}  Qg5 {[%clk 0:00:31]} 25. Bd2 {[%clk 0:01:59]}  Qd8 {[%clk 0:00:28]} 26. Be3 {[%clk 0:01:50]}  Qb8 {[%clk 0:00:13]} 27. g4 {[%clk 0:01:41]}  Nf6 {[%clk 0:00:13]} 28. Bf4 {[%clk 0:01:36]}  Qxd6 {[%clk 0:00:12]} 29. Rxd6 {[%clk 0:01:37]}  Nd7 {[%clk 0:00:12]} 30. Rbd1 {[%clk 0:01:37]}  Ra7 {[%clk 0:00:10]} 31. h4 {[%clk 0:01:35]}  Kg7 {[%clk 0:00:11]} 32. Kf2 {[%clk 0:01:35]}  h6 {[%clk 0:00:09]} 33. R1d2 {[%clk 0:01:35]}  Rb7 {[%clk 0:00:04]} 34. Ra2 {[%clk 0:01:27]}  f6 {[%clk 0:00:04]} 35. Ra6 {[%clk 0:01:26]}  Kf7 {[%clk 0:00:04]} 36. Bxh6 {[%clk 0:01:24]}  Rh8 {[%clk 0:00:02]} 37. g5 {[%clk 0:01:21]}  Ke7 {[%clk 0:00:03]} 38. Rc6 {[%clk 0:01:15]}  Ne5 {[%clk 0:00:03]} 39. Rcxb6 {[%clk 0:01:15]}  Rxb6 {[%clk 0:00:03]} 40. Rxb6 {[%clk 0:01:16]}  Nxc4 {[%clk 0:00:04]} 41. Rc6 {[%clk 0:01:07]}  Ne5 {[%clk 0:00:03]} 42. Rxc5 {[%clk 0:01:03]}  Nd7 {[%clk 0:00:03]} 43. gxf6+ {[%clk 0:00:57]}  Kf7 {[%clk 0:00:02]} 44. Bg7 {[%clk 0:00:49]}  Rxh4 {[%clk 0:00:01]} 45. Rc7 {[%clk 0:00:49]}  Rh2+ {[%clk 0:00:01]} 46. Ke3 {[%clk 0:00:50]}  Ke8 {[%clk 0:00:01]} 47. b6 {[%clk 0:00:49]}  Kd8 {[%clk 0:00:02]} 48. Bb5 {[%clk 0:00:44]}  Nxb6 {[%clk 0:00:01]} 49. f7 {[%clk 0:00:45]}  Bxf7 {[%clk 0:00:02]} 50. Rxf7 {[%clk 0:00:46]}  Nd7 {[%clk 0:00:00]} 51. Rxd7+ {[%clk 0:00:45]} 1-0


[Site "https://www.chess.com"]

[Event "Titled Tuesday Blitz May 16 Early 2023"]
[White "Gonzalez, Francisco Silva"]
[Black "Erigaisi Arjun"]
[WhiteFideId "1512285"]
[BlackFideId "35009192"]
[WhiteElo "2074"]
[BlackElo "2719"]
[Result "0-1"]
[Round "01"]
[TimeControl "180+2"]
[Date "2023.05.16"]
[WhiteClock "0:00:15"]
[BlackClock "0:00:40"]

1. d4 {[%clk 0:02:59]}  d6 {[%clk 0:02:52]} 2. e4 {[%clk 0:02:57]}  g6 {[%clk 0:02:52]} 3. c4 {[%clk 0:02:56]}  Bg7 {[%clk 0:02:52]} 4. Nc3 {[%clk 0:02:54]}  Nd7 {[%clk 0:02:52]} 5. Be3 {[%clk 0:02:54]}  Ngf6 {[%clk 0:02:52]} 6. f3 {[%clk 0:02:52]}  O-O {[%clk 0:02:52]} 7. g4 {[%clk 0:02:52]}  e5 {[%clk 0:02:52]} 8. d5 {[%clk 0:02:51]}  a5 {[%clk 0:02:51]} 9. h4 {[%clk 0:02:51]}  h5 {[%clk 0:02:48]} 10. Bg5 {[%clk 0:02:46]}  hxg4 {[%clk 0:02:18]} 11. fxg4 {[%clk 0:02:45]}  Nc5 {[%clk 0:02:19]} 12. Be2 {[%clk 0:02:42]}  Qe8 {[%clk 0:02:17]} 13. Nb5 {[%clk 0:02:41]}  Qd7 {[%clk 0:02:13]} 14. Bxf6 {[%clk 0:02:40]}  Bxf6 {[%clk 0:02:14]} 15. g5 {[%clk 0:02:40]}  Bg7 {[%clk 0:02:09]} 16. Nc3 {[%clk 0:02:40]}  f5 {[%clk 0:02:06]} 17. h5 {[%clk 0:02:38]}  fxe4 {[%clk 0:02:03]} 18. h6 {[%clk 0:02:38]}  Bh8 {[%clk 0:02:02]} 19. Qd2 {[%clk 0:02:33]}  Qf7 {[%clk 0:01:53]} 20. Qe3 {[%clk 0:02:33]}  Qf4 {[%clk 0:01:52]} 21. Kd2 {[%clk 0:02:32]}  Bg4 {[%clk 0:01:38]} 22. Nh3 {[%clk 0:02:30]}  Qxe3+ {[%clk 0:01:34]} 23. Kxe3 {[%clk 0:02:30]}  Bxe2 {[%clk 0:01:35]} 24. Kxe2 {[%clk 0:02:29]}  Rf5 {[%clk 0:01:29]} 25. Rhg1 {[%clk 0:02:17]}  Raf8 {[%clk 0:01:28]} 26. Rg3 {[%clk 0:02:10]}  Kh7 {[%clk 0:01:21]} 27. Rag1 {[%clk 0:02:07]}  c6 {[%clk 0:01:20]} 28. R1g2 {[%clk 0:02:01]}  a4 {[%clk 0:01:09]} 29. Rg1 {[%clk 0:01:59]}  R8f7 {[%clk 0:01:01]} 30. R1g2 {[%clk 0:01:58]}  cxd5 {[%clk 0:00:59]} 31. cxd5 {[%clk 0:01:36]}  Nd3 {[%clk 0:00:59]} 32. Nxe4 {[%clk 0:01:32]}  Nf4+ {[%clk 0:00:59]} 33. Nxf4 {[%clk 0:01:31]}  exf4 {[%clk 0:01:00]} 34. Nxd6 {[%clk 0:01:13]}  Re7+ {[%clk 0:00:47]} 35. Kf1 {[%clk 0:01:08]}  Rxd5 {[%clk 0:00:42]} 36. Rg4 {[%clk 0:00:45]}  Rd1+ {[%clk 0:00:38]} 37. Kf2 {[%clk 0:00:45]}  Bd4+ {[%clk 0:00:39]} 38. Kf3 {[%clk 0:00:15]}  Rf1+ {[%clk 0:00:40]} 0-1


[Site "https://www.chess.com"]

[Event "Titled Tuesday Blitz May 16 Early 2023"]
[White "Martinez Alcantara, Jose Eduardo"]
[Black "Ginzburg, Yakov"]
[WhiteFideId "3805662"]
[BlackFideId "4157176"]
[WhiteElo "2711"]
[BlackElo "2305"]
[Result "1-0"]
[Round "01"]
[TimeControl "180+2"]
[Date "2023.05.16"]
[WhiteClock "0:00:25"]
[BlackClock "0:00:04"]

1. e4 {[%clk 0:03:00]}  c5 {[%clk 0:02:59]} 2. Nf3 {[%clk 0:03:01]}  e6 {[%clk 0:02:59]} 3. c3 {[%clk 0:03:01]}  d5 {[%clk 0:02:58]} 4. e5 {[%clk 0:03:02]}  d4 {[%clk 0:02:57]} 5. Bd3 {[%clk 0:03:01]}  Nc6 {[%clk 0:02:52]} 6. Qe2 {[%clk 0:03:02]}  Nge7 {[%clk 0:02:44]} 7. Be4 {[%clk 0:02:59]}  Ng6 {[%clk 0:02:38]} 8. Bxc6+ {[%clk 0:02:47]}  bxc6 {[%clk 0:02:38]} 9. d3 {[%clk 0:02:48]}  c4 {[%clk 0:02:19]} 10. cxd4 {[%clk 0:02:43]}  cxd3 {[%clk 0:02:18]} 11. Qxd3 {[%clk 0:02:43]}  a5 {[%clk 0:02:18]} 12. Qe4 {[%clk 0:02:38]}  Qd5 {[%clk 0:02:05]} 13. Qxd5 {[%clk 0:02:37]}  cxd5 {[%clk 0:02:06]} 14. a3 {[%clk 0:02:25]}  Ba6 {[%clk 0:02:02]} 15. Nc3 {[%clk 0:02:25]}  Be7 {[%clk 0:02:01]} 16. h4 {[%clk 0:02:25]}  h5 {[%clk 0:01:59]} 17. g3 {[%clk 0:02:14]}  f6 {[%clk 0:01:52]} 18. exf6 {[%clk 0:01:59]}  Bxf6 {[%clk 0:01:45]} 19. Be3 {[%clk 0:01:59]}  Rc8 {[%clk 0:01:40]} 20. Kd2 {[%clk 0:01:55]}  O-O {[%clk 0:01:37]} 21. Ng5 {[%clk 0:01:48]}  e5 {[%clk 0:01:27]} 22. Nxd5 {[%clk 0:01:17]}  exd4 {[%clk 0:01:16]} 23. Bf4 {[%clk 0:01:17]}  d3 {[%clk 0:01:11]} 24. Nc3 {[%clk 0:00:59]}  Nxf4 {[%clk 0:01:09]} 25. gxf4 {[%clk 0:00:59]}  Bxc3+ {[%clk 0:01:05]} 26. bxc3 {[%clk 0:00:59]}  Rxf4 {[%clk 0:01:06]} 27. f3 {[%clk 0:00:58]}  Re8 {[%clk 0:01:00]} 28. Rhe1 {[%clk 0:00:58]}  Re2+ {[%clk 0:00:59]} 29. Rxe2 {[%clk 0:00:59]}  dxe2 {[%clk 0:01:00]} 30. Rb1 {[%clk 0:01:00]}  Rf8 {[%clk 0:00:52]} 31. Ke1 {[%clk 0:00:56]}  Rd8 {[%clk 0:00:40]} 32. Ne6 {[%clk 0:00:49]}  Rc8 {[%clk 0:00:39]} 33. Rb6 {[%clk 0:00:41]}  Bd3 {[%clk 0:00:29]} 34. Ng5 {[%clk 0:00:27]}  Kf8 {[%clk 0:00:26]} 35. Ne6+ {[%clk 0:00:25]}  Ke7 {[%clk 0:00:23]} 36. Nf4 {[%clk 0:00:25]}  Rxc3 {[%clk 0:00:04]} 37. Nd5+ {[%clk 0:00:25]} 1-0


[Site "https://www.chess.com"]

[Event "Titled Tuesday Blitz May 16 Early 2023"]
[White "Mekhane, Adam"]
[Black "Zhigalko, Sergei"]
[WhiteFideId "36050601"]
[BlackFideId "13502956"]
[WhiteElo "2177"]
[BlackElo "2626"]
[Result "0-1"]
[Round "01"]
[TimeControl "180+2"]
[Date "2023.05.16"]
[WhiteClock "0:00:03"]
[BlackClock "0:00:17"]

1. e4 {[%clk 0:02:59]}  c5 {[%clk 0:02:59]} 2. Nf3 {[%clk 0:02:59]}  Nc6 {[%clk 0:03:00]} 3. Bb5 {[%clk 0:02:59]}  Nf6 {[%clk 0:03:00]} 4. d3 {[%clk 0:02:56]}  Qa5+ {[%clk 0:03:00]} 5. Nc3 {[%clk 0:02:55]}  Nd4 {[%clk 0:03:01]} 6. Bc4 {[%clk 0:02:39]}  b5 {[%clk 0:03:01]} 7. Bb3 {[%clk 0:02:29]}  Nxb3 {[%clk 0:03:01]} 8. cxb3 {[%clk 0:02:29]}  d6 {[%clk 0:03:02]} 9. O-O {[%clk 0:02:29]}  e6 {[%clk 0:03:02]} 10. d4 {[%clk 0:02:27]}  b4 {[%clk 0:03:02]} 11. Na4 {[%clk 0:02:20]}  Nxe4 {[%clk 0:03:02]} 12. dxc5 {[%clk 0:02:20]}  Nxc5 {[%clk 0:02:56]} 13. Nxc5 {[%clk 0:02:17]}  Qxc5 {[%clk 0:02:52]} 14. Be3 {[%clk 0:02:17]}  Qa5 {[%clk 0:02:28]} 15. Qd4 {[%clk 0:01:52]}  Bb7 {[%clk 0:02:25]} 16. Rac1 {[%clk 0:00:56]}  e5 {[%clk 0:01:27]} 17. Qg4 {[%clk 0:00:52]}  h5 {[%clk 0:01:16]} 18. Qf5 {[%clk 0:00:40]}  Be7 {[%clk 0:01:08]} 19. Ng5 {[%clk 0:00:28]}  Qd5 {[%clk 0:00:55]} 20. f3 {[%clk 0:00:28]}  g6 {[%clk 0:00:55]} 21. Qe4 {[%clk 0:00:16]}  Qb5 {[%clk 0:00:46]} 22. Qc4 {[%clk 0:00:12]}  Qxc4 {[%clk 0:00:46]} 23. bxc4 {[%clk 0:00:11]}  a5 {[%clk 0:00:39]} 24. h4 {[%clk 0:00:11]}  Rc8 {[%clk 0:00:36]} 25. Rfd1 {[%clk 0:00:11]}  O-O {[%clk 0:00:31]} 26. Bb6 {[%clk 0:00:11]}  a4 {[%clk 0:00:31]} 27. Ba5 {[%clk 0:00:11]}  d5 {[%clk 0:00:23]} 28. cxd5 {[%clk 0:00:11]}  Rxc1 {[%clk 0:00:24]} 29. Rxc1 {[%clk 0:00:12]}  Bxd5 {[%clk 0:00:25]} 30. Rc7 {[%clk 0:00:12]}  Re8 {[%clk 0:00:26]} 31. Kf2 {[%clk 0:00:11]}  Bxa2 {[%clk 0:00:25]} 32. Rb7 {[%clk 0:00:10]}  a3 {[%clk 0:00:19]} 33. bxa3 {[%clk 0:00:07]}  bxa3 {[%clk 0:00:20]} 34. Bc3 {[%clk 0:00:08]}  Bd5 {[%clk 0:00:18]} 35. Ra7 {[%clk 0:00:08]}  Bc5+ {[%clk 0:00:18]} 36. Ke2 {[%clk 0:00:03]}  Bxa7 {[%clk 0:00:17]} 0-1


[Site "https://www.chess.com"]

[Event "Titled Tuesday Blitz May 16 Early 2023"]
[White "Hakobyan, Aram"]
[Black "Miszler, Levente"]
[WhiteFideId "13306677"]
[BlackFideId "763276"]
[WhiteElo "2584"]
[BlackElo "2176"]
[Result "1-0"]
[Round "01"]
[TimeControl "180+2"]
[Date "2023.05.16"]
[WhiteClock "0:02:23"]
[BlackClock "0:02:18"]

1. d4 {[%clk 0:03:00]}  Nf6 {[%clk 0:02:53]} 2. c4 {[%clk 0:03:01]}  e6 {[%clk 0:02:54]} 3. Nc3 {[%clk 0:03:02]}  Bb4 {[%clk 0:02:54]} 4. e3 {[%clk 0:03:02]}  O-O {[%clk 0:02:53]} 5. a3 {[%clk 0:03:01]}  Bxc3+ {[%clk 0:02:53]} 6. bxc3 {[%clk 0:03:02]}  c5 {[%clk 0:02:50]} 7. Ne2 {[%clk 0:03:02]}  d5 {[%clk 0:02:48]} 8. Ng3 {[%clk 0:02:56]}  Nbd7 {[%clk 0:02:39]} 9. cxd5 {[%clk 0:02:53]}  exd5 {[%clk 0:02:37]} 10. Bd3 {[%clk 0:02:52]}  Re8 {[%clk 0:02:33]} 11. O-O {[%clk 0:02:52]}  Qc7 {[%clk 0:02:31]} 12. Bb2 {[%clk 0:02:44]}  Ne4 {[%clk 0:02:25]} 13. c4 {[%clk 0:02:37]}  Nxg3 {[%clk 0:02:25]} 14. fxg3 {[%clk 0:02:37]}  dxc4 {[%clk 0:02:25]} 15. Bxh7+ {[%clk 0:02:35]}  Kxh7 {[%clk 0:02:25]} 16. Qh5+ {[%clk 0:02:36]}  Kg8 {[%clk 0:02:25]} 17. Qxf7+ {[%clk 0:02:37]}  Kh7 {[%clk 0:02:24]} 18. Qh5+ {[%clk 0:02:38]}  Kg8 {[%clk 0:02:25]} 19. Qxe8+ {[%clk 0:02:38]}  Kh7 {[%clk 0:02:23]} 20. Qh5+ {[%clk 0:02:32]}  Kg8 {[%clk 0:02:21]} 21. Qf7+ {[%clk 0:02:33]}  Kh7 {[%clk 0:02:18]} 22. d5 {[%clk 0:02:23]} 1-0


[Site "https://www.chess.com"]